[Event "Early-Titled-Tuesday-Blitz-November-28-2023"]
[Site "Chess.com"]
[Date "2023.11.28"]
[Round "10"]
[White "JimDiGrease"]
[Black "Alexei_Gubajdullin"]
[Result "1-0"]
[WhiteElo "2939"]
[BlackElo "2674"]
[TimeControl "180+1"]
[EndTime "10:02:54 PST"]
[Termination "JimDiGrease won on time"]

1. d4 {[%clk 0:03:00.9]} 1... Nf6 {[%clk 0:03:00]} 2. c4 {[%clk 0:03:01.2]} 2...
g6 {[%clk 0:03:00.3]} 3. h4 {[%clk 0:02:58]} 3... h6 {[%clk 0:03:00]} 4. Nc3
{[%clk 0:02:57]} 4... Bg7 {[%clk 0:02:59.8]} 5. e4 {[%clk 0:02:57.1]} 5... d6
{[%clk 0:02:58.6]} 6. Be2 {[%clk 0:02:56.3]} 6... Nc6 {[%clk 0:02:45]} 7. d5
{[%clk 0:02:49]} 7... Ne5 {[%clk 0:02:44.3]} 8. Nf3 {[%clk 0:02:47.2]} 8... Neg4
{[%clk 0:02:38.9]} 9. Nd4 {[%clk 0:02:27.8]} 9... Bd7 {[%clk 0:02:36.7]} 10. f3
{[%clk 0:02:15.3]} 10... Ne5 {[%clk 0:02:35.5]} 11. Be3 {[%clk 0:02:15.7]} 11...
c5 {[%clk 0:02:33.5]} 12. dxc6 {[%clk 0:01:54.3]} 12... bxc6 {[%clk 0:02:33.1]}
13. c5 {[%clk 0:01:54.6]} 13... d5 {[%clk 0:02:25]} 14. exd5 {[%clk 0:01:48.1]}
14... Nxd5 {[%clk 0:02:24.9]} 15. Nxd5 {[%clk 0:01:37.2]} 15... cxd5 {[%clk
0:02:24.2]} 16. b4 {[%clk 0:01:38.1]} 16... Nc4 {[%clk 0:02:08.5]} 17. Bxc4
{[%clk 0:01:15.8]} 17... dxc4 {[%clk 0:02:08.5]} 18. c6 {[%clk 0:01:06.9]} 18...
Bc8 {[%clk 0:02:05.3]} 19. Rc1 {[%clk 0:00:59.9]} 19... O-O {[%clk 0:01:53.8]}
20. Rxc4 {[%clk 0:00:52.1]} 20... Qd5 {[%clk 0:01:47.3]} 21. Qc2 {[%clk
0:00:46.5]} 21... e5 {[%clk 0:01:21]} 22. Rc5 {[%clk 0:00:39.1]} 22... Qd6
{[%clk 0:01:18.7]} 23. Nb5 {[%clk 0:00:39.1]} 23... Qe7 {[%clk 0:01:12.6]} 24.
Rc4 {[%clk 0:00:33.2]} 24... Bf5 {[%clk 0:01:11.4]} 25. Bc5 {[%clk 0:00:29.6]}
25... Qf6 {[%clk 0:01:07.2]} 26. Qc3 {[%clk 0:00:25.6]} 26... Rfc8 {[%clk
0:00:55.2]} 27. Nxa7 {[%clk 0:00:15.3]} 27... Rc7 {[%clk 0:00:51.8]} 28. b5
{[%clk 0:00:15.6]} 28... Rcxa7 {[%clk 0:00:48.9]} 29. Bxa7 {[%clk 0:00:14.9]}
29... Rxa7 {[%clk 0:00:47.9]} 30. b6 {[%clk 0:00:09.8]} 30... Rxa2 {[%clk
0:00:47.6]} 31. b7 {[%clk 0:00:10.4]} 31... Qd6 {[%clk 0:00:42.6]} 32. c7 {[%clk
0:00:10.4]} 32... e4 {[%clk 0:00:39.8]} 33. b8=Q+ {[%clk 0:00:09.4]} 33... Kh7
{[%clk 0:00:40]} 34. Qe3 {[%clk 0:00:07.1]} 34... Qg3+ {[%clk 0:00:32.5]} 35.
Kd1 {[%clk 0:00:03.9]} 35... Qxg2 {[%clk 0:00:32.5]} 36. Re1 {[%clk 0:00:03.1]}
36... exf3 {[%clk 0:00:30.1]} 37. c8=Q {[%clk 0:00:02.9]} 37... Ra1+ {[%clk
0:00:17.7]} 38. Rc1 {[%clk 0:00:02.4]} 38... Rxc1+ {[%clk 0:00:12.2]} 39. Kxc1
{[%clk 0:00:03.3]} 39... Bxc8 {[%clk 0:00:09.2]} 40. Qxc8 {[%clk 0:00:04.2]}
40... Qb2+ {[%clk 0:00:09.2]} 41. Kd1 {[%clk 0:00:03.8]} 41... f2 {[%clk
0:00:09.3]} 42. Rf1 {[%clk 0:00:03.3]} 42... Bd4 {[%clk 0:00:08.3]} 43. Qd3
{[%clk 0:00:03.3]} 43... h5 {[%clk 0:00:06.1]} 44. Qcc4 {[%clk 0:00:03.1]} 44...
Qa1+ {[%clk 0:00:04]} 45. Ke2 {[%clk 0:00:03.4]} 45... Qb2+ {[%clk 0:00:04.4]}
46. Kf3 {[%clk 0:00:04]} 46... Qb7+ {[%clk 0:00:04.2]} 47. Ke2 {[%clk
0:00:02.9]} 47... Qe7+ {[%clk 0:00:03]} 48. Kd1 {[%clk 0:00:02.9]} 48... Bb6
{[%clk 0:00:02.5]} 49. Qdd5 {[%clk 0:00:03]} 49... Kg7 {[%clk 0:00:01.5]} 50.
Qc3+ {[%clk 0:00:03]} 50... Kh7 {[%clk 0:00:01.4]} 51. Qde5 {[%clk 0:00:03.4]}
51... Qd7+ {[%clk 0:00:01.1]} 52. Kc1 {[%clk 0:00:03]} 1-0

[Event "Early-Titled-Tuesday-Blitz-November-28-2023"]
[Site "Chess.com"]
[Date "2023.11.28"]
[Round "10"]
[White "Gyulamiryan-koryun"]
[Black "LaPiToB"]
[Result "0-1"]
[WhiteElo "1938"]
[BlackElo "2275"]
[TimeControl "180+1"]
[EndTime "10:02:55 PST"]
[Termination "LaPiToB won by checkmate"]

1. e4 {[%clk 0:02:53.9]} 1... c5 {[%clk 0:02:59.2]} 2. Nf3 {[%clk 0:02:50.4]}
2... d6 {[%clk 0:02:58.7]} 3. d4 {[%clk 0:02:50.2]} 3... cxd4 {[%clk 0:02:59.4]}
4. Nxd4 {[%clk 0:02:50.8]} 4... Nf6 {[%clk 0:02:59.7]} 5. Nc3 {[%clk 0:02:51]}
5... g6 {[%clk 0:02:59.4]} 6. f3 {[%clk 0:02:50.4]} 6... Bg7 {[%clk 0:02:58.8]}
7. Be3 {[%clk 0:02:46.1]} 7... O-O {[%clk 0:02:58]} 8. Qd2 {[%clk 0:02:45.7]}
8... Nc6 {[%clk 0:02:57.4]} 9. O-O-O {[%clk 0:02:44.2]} 9... d5 {[%clk
0:02:57.2]} 10. Nxc6 {[%clk 0:02:20.6]} 10... bxc6 {[%clk 0:02:55.5]} 11. e5
{[%clk 0:01:50.2]} 11... Ne8 {[%clk 0:02:21.4]} 12. Bh6 {[%clk 0:01:48.1]} 12...
Rb8 {[%clk 0:02:18]} 13. Bxg7 {[%clk 0:01:44.6]} 13... Nxg7 {[%clk 0:02:14.2]}
14. h4 {[%clk 0:01:44.3]} 14... h5 {[%clk 0:02:11.8]} 15. Rg1 {[%clk 0:01:38.7]}
15... Qb6 {[%clk 0:02:09.4]} 16. Bb5 {[%clk 0:01:28.8]} 16... cxb5 {[%clk
0:02:00.8]} 17. Nxd5 {[%clk 0:01:28.7]} 17... Qe6 {[%clk 0:01:55.4]} 18. Qb4
{[%clk 0:01:22.7]} 18... Re8 {[%clk 0:01:45.2]} 19. Nc7 {[%clk 0:01:21.2]} 19...
Qc6 {[%clk 0:01:32.5]} 20. Nxe8 {[%clk 0:01:13.6]} 20... Qxe8 {[%clk 0:01:33.4]}
21. Rd4 {[%clk 0:01:01.5]} 21... Nf5 {[%clk 0:01:25.7]} 22. Rd3 {[%clk
0:00:55.1]} 22... Be6 {[%clk 0:01:23.6]} 23. b3 {[%clk 0:00:52.9]} 23... Rc8
{[%clk 0:01:18.9]} 24. g4 {[%clk 0:00:46.7]} 24... Qc6 {[%clk 0:01:13]} 25. c3
{[%clk 0:00:37.4]} 25... Ng7 {[%clk 0:01:00.6]} 26. Qxe7 {[%clk 0:00:34.3]}
26... hxg4 {[%clk 0:00:48.7]} 27. fxg4 {[%clk 0:00:32.1]} 27... Qa6 {[%clk
0:00:42.6]} 28. Rd8+ {[%clk 0:00:29.3]} 28... Rxd8 {[%clk 0:00:40.7]} 29. Qxd8+
{[%clk 0:00:29.4]} 29... Kh7 {[%clk 0:00:41.1]} 30. Kb2 {[%clk 0:00:29.2]} 30...
b4 {[%clk 0:00:36.7]} 31. c4 {[%clk 0:00:23.4]} 31... Qa3+ {[%clk 0:00:27.8]}
32. Kb1 {[%clk 0:00:22.2]} 32... Qa6 {[%clk 0:00:19.1]} 33. h5 {[%clk
0:00:21.5]} 33... Qc6 {[%clk 0:00:18.6]} 34. hxg6+ {[%clk 0:00:20.6]} 34... Kxg6
{[%clk 0:00:18.9]} 35. Qd3+ {[%clk 0:00:17.7]} 35... Kg5 {[%clk 0:00:16.5]} 36.
Qe3+ {[%clk 0:00:15.3]} 36... Kg6 {[%clk 0:00:16.4]} 37. Qd3+ {[%clk 0:00:14.5]}
37... Kg5 {[%clk 0:00:16.5]} 38. Re1 {[%clk 0:00:11]} 38... Bxg4 {[%clk
0:00:13.3]} 39. Qe3+ {[%clk 0:00:10.8]} 39... Kg6 {[%clk 0:00:12.8]} 40. Qe4+
{[%clk 0:00:11.1]} 40... Qxe4+ {[%clk 0:00:12.3]} 41. Rxe4 {[%clk 0:00:11.1]}
41... Bf5 {[%clk 0:00:12.9]} 42. Kb2 {[%clk 0:00:09.1]} 42... Bxe4 {[%clk
0:00:13]} 43. a3 {[%clk 0:00:10]} 43... bxa3+ {[%clk 0:00:13]} 44. Kxa3 {[%clk
0:00:10]} 44... Kf5 {[%clk 0:00:13.7]} 45. Kb4 {[%clk 0:00:08.2]} 45... Kxe5
{[%clk 0:00:13.8]} 46. Kc5 {[%clk 0:00:08.9]} 46... f5 {[%clk 0:00:14.3]} 47. b4
{[%clk 0:00:08.6]} 47... f4 {[%clk 0:00:14.7]} 48. b5 {[%clk 0:00:09.5]} 48...
f3 {[%clk 0:00:15.1]} 49. b6 {[%clk 0:00:08.9]} 49... axb6+ {[%clk 0:00:15.3]}
50. Kxb6 {[%clk 0:00:09.8]} 50... f2 {[%clk 0:00:15.4]} 51. c5 {[%clk
0:00:10.7]} 51... f1=Q {[%clk 0:00:12.9]} 52. c6 {[%clk 0:00:11.6]} 52... Bxc6
{[%clk 0:00:12.4]} 53. Kxc6 {[%clk 0:00:10.5]} 53... Qc4+ {[%clk 0:00:12.8]} 54.
Kb6 {[%clk 0:00:09.9]} 54... Kd6 {[%clk 0:00:12.2]} 55. Kb7 {[%clk 0:00:09.5]}
55... Qb5+ {[%clk 0:00:11.2]} 56. Kc8 {[%clk 0:00:07.3]} 56... Qd7+ {[%clk
0:00:10.6]} 57. Kb8 {[%clk 0:00:06.9]} 57... Kc6 {[%clk 0:00:10.1]} 58. Ka8
{[%clk 0:00:06.4]} 58... Qb7# {[%clk 0:00:11]} 0-1

[Event "Early-Titled-Tuesday-Blitz-November-28-2023"]
[Site "Chess.com"]
[Date "2023.11.28"]
[Round "10"]
[White "Ajedrez_con_German"]
[Black "Goffredo_Fofi"]
[Result "0-1"]
[WhiteElo "2613"]
[BlackElo "2492"]
[TimeControl "180+1"]
[EndTime "10:02:57 PST"]
[Termination "Goffredo_Fofi won on time"]

1. e4 {[%clk 0:02:58.9]} 1... g6 {[%clk 0:03:00.2]} 2. d4 {[%clk 0:02:58.7]}
2... Bg7 {[%clk 0:02:58.1]} 3. c3 {[%clk 0:02:59.2]} 3... c6 {[%clk 0:02:57.1]}
4. Nf3 {[%clk 0:02:59.4]} 4... d5 {[%clk 0:02:57.7]} 5. Nbd2 {[%clk 0:02:59.7]}
5... Bg4 {[%clk 0:02:44.4]} 6. h3 {[%clk 0:02:58]} 6... Bxf3 {[%clk 0:02:44.1]}
7. Qxf3 {[%clk 0:02:58.7]} 7... e6 {[%clk 0:02:40.6]} 8. Bd3 {[%clk 0:02:57.9]}
8... Nd7 {[%clk 0:02:39.5]} 9. O-O {[%clk 0:02:57.9]} 9... Ne7 {[%clk
0:02:31.1]} 10. Re1 {[%clk 0:02:57.2]} 10... O-O {[%clk 0:02:30.6]} 11. Qe2
{[%clk 0:02:53.3]} 11... c5 {[%clk 0:02:28.7]} 12. dxc5 {[%clk 0:02:50.6]} 12...
Nxc5 {[%clk 0:02:27.9]} 13. Bc2 {[%clk 0:02:51]} 13... Rc8 {[%clk 0:02:19.9]}
14. exd5 {[%clk 0:02:47.5]} 14... Nxd5 {[%clk 0:02:20.8]} 15. Nb3 {[%clk
0:02:47.5]} 15... Na4 {[%clk 0:02:01]} 16. Be4 {[%clk 0:02:31.1]} 16... Qd7
{[%clk 0:01:37.4]} 17. Bg5 {[%clk 0:02:22]} 17... Nab6 {[%clk 0:01:32.4]} 18.
Rad1 {[%clk 0:02:19.2]} 18... Qc7 {[%clk 0:01:32.6]} 19. Qf3 {[%clk 0:02:10.6]}
19... Nc4 {[%clk 0:01:18.4]} 20. Bc1 {[%clk 0:02:09.9]} 20... Rfd8 {[%clk
0:01:14.7]} 21. Bxd5 {[%clk 0:02:04.9]} 21... exd5 {[%clk 0:01:14.4]} 22. Rxd5
{[%clk 0:02:05.5]} 22... Rxd5 {[%clk 0:01:15.1]} 23. Qxd5 {[%clk 0:02:05.6]}
23... a5 {[%clk 0:01:13.9]} 24. Nd4 {[%clk 0:01:42.6]} 24... Rd8 {[%clk
0:01:09.1]} 25. Qb5 {[%clk 0:01:33.1]} 25... Nd6 {[%clk 0:01:06.5]} 26. Qg5
{[%clk 0:01:26.5]} 26... Re8 {[%clk 0:00:58.9]} 27. Rxe8+ {[%clk 0:01:13.4]}
27... Nxe8 {[%clk 0:00:59.8]} 28. Be3 {[%clk 0:00:58.2]} 28... Bf6 {[%clk
0:00:48.5]} 29. Qd5 {[%clk 0:00:54]} 29... a4 {[%clk 0:00:40.7]} 30. g3 {[%clk
0:00:42.9]} 30... Qb6 {[%clk 0:00:32.8]} 31. Qb5 {[%clk 0:00:37.1]} 31... Qxb5
{[%clk 0:00:30]} 32. Nxb5 {[%clk 0:00:36.7]} 32... Kf8 {[%clk 0:00:29.6]} 33.
Bc5+ {[%clk 0:00:29.6]} 33... Kg7 {[%clk 0:00:28.6]} 34. Kf1 {[%clk 0:00:28.4]}
34... Be5 {[%clk 0:00:26.7]} 35. Ke2 {[%clk 0:00:27]} 35... Kf6 {[%clk
0:00:27.2]} 36. f4 {[%clk 0:00:22.7]} 36... Bb8 {[%clk 0:00:25.8]} 37. Nd4
{[%clk 0:00:18.8]} 37... Nd6 {[%clk 0:00:21.5]} 38. Bxd6 {[%clk 0:00:17.4]}
38... Bxd6 {[%clk 0:00:22.4]} 39. Kf3 {[%clk 0:00:16.2]} 39... Bc5 {[%clk
0:00:20.4]} 40. Ke4 {[%clk 0:00:15.1]} 40... Ke7 {[%clk 0:00:19.6]} 41. b3
{[%clk 0:00:12.3]} 41... axb3 {[%clk 0:00:19.5]} 42. axb3 {[%clk 0:00:13.2]}
42... Kd6 {[%clk 0:00:18.9]} 43. g4 {[%clk 0:00:12.8]} 43... Bb6 {[%clk
0:00:17.5]} 44. f5 {[%clk 0:00:11.3]} 44... Bc5 {[%clk 0:00:16.9]} 45. Nf3
{[%clk 0:00:11.1]} 45... f6 {[%clk 0:00:16.3]} 46. fxg6 {[%clk 0:00:10.1]} 46...
hxg6 {[%clk 0:00:17.2]} 47. h4 {[%clk 0:00:10.4]} 47... Ke6 {[%clk 0:00:15.8]}
48. Kd3 {[%clk 0:00:05.2]} 48... f5 {[%clk 0:00:13.5]} 49. Ng5+ {[%clk
0:00:02.6]} 49... Kf6 {[%clk 0:00:13.1]} 50. gxf5 {[%clk 0:00:03.1]} 50... Kxf5
{[%clk 0:00:13.3]} 51. Ke2 {[%clk 0:00:03.5]} 51... Be7 {[%clk 0:00:13]} 52. Kf3
{[%clk 0:00:03.1]} 52... Bxg5 {[%clk 0:00:12.5]} 53. hxg5 {[%clk 0:00:04]} 53...
Kxg5 {[%clk 0:00:13.4]} 54. c4 {[%clk 0:00:04.4]} 54... Kf6 {[%clk 0:00:13.7]}
55. b4 {[%clk 0:00:04.9]} 55... Ke5 {[%clk 0:00:13.7]} 56. Kg4 {[%clk
0:00:03.2]} 56... Kd4 {[%clk 0:00:14]} 57. Kg5 {[%clk 0:00:03.4]} 57... Kxc4
{[%clk 0:00:14.4]} 58. Kxg6 {[%clk 0:00:03.2]} 58... Kxb4 {[%clk 0:00:14.6]} 59.
Kf5 {[%clk 0:00:04.1]} 59... Kc4 {[%clk 0:00:14.8]} 0-1

[Event "Early-Titled-Tuesday-Blitz-November-28-2023"]
[Site "Chess.com"]
[Date "2023.11.28"]
[Round "10"]
[White "Khromkin"]
[Black "tylityli"]
[Result "0-1"]
[WhiteElo "2443"]
[BlackElo "2277"]
[TimeControl "180+1"]
[EndTime "10:02:57 PST"]
[Termination "tylityli won on time"]

1. d4 {[%clk 0:03:00.9]} 1... Nf6 {[%clk 0:02:26.5]} 2. c4 {[%clk 0:03:01.8]}
2... e6 {[%clk 0:02:26.4]} 3. Nf3 {[%clk 0:02:47]} 3... Bb4+ {[%clk 0:02:26.7]}
4. Bd2 {[%clk 0:02:46.7]} 4... Qe7 {[%clk 0:02:27.2]} 5. g3 {[%clk 0:02:46]}
5... Nc6 {[%clk 0:02:26.7]} 6. Bg2 {[%clk 0:02:46.6]} 6... O-O {[%clk
0:02:26.9]} 7. O-O {[%clk 0:02:45.4]} 7... Bxd2 {[%clk 0:02:27.5]} 8. Qxd2
{[%clk 0:02:46]} 8... d6 {[%clk 0:02:28.4]} 9. Nc3 {[%clk 0:02:46.6]} 9... e5
{[%clk 0:02:27.8]} 10. Nd5 {[%clk 0:02:47.2]} 10... Qd8 {[%clk 0:02:26.6]} 11.
dxe5 {[%clk 0:02:46.7]} 11... Nxe5 {[%clk 0:02:20]} 12. Nxe5 {[%clk 0:02:46.1]}
12... dxe5 {[%clk 0:02:20.9]} 13. Qb4 {[%clk 0:02:27.7]} 13... c6 {[%clk
0:02:14.7]} 14. Ne7+ {[%clk 0:02:26.9]} 14... Kh8 {[%clk 0:02:13.8]} 15. Rfd1
{[%clk 0:02:26.4]} 15... Qe8 {[%clk 0:02:09.7]} 16. Nxc8 {[%clk 0:02:24.9]}
16... Qxc8 {[%clk 0:02:08.2]} 17. Rd6 {[%clk 0:02:17.9]} 17... Qc7 {[%clk
0:01:58.9]} 18. Rad1 {[%clk 0:02:14.9]} 18... h6 {[%clk 0:01:43.4]} 19. Qc5
{[%clk 0:02:12.2]} 19... Qe7 {[%clk 0:01:40.5]} 20. Qa5 {[%clk 0:02:05.4]} 20...
Rfe8 {[%clk 0:01:24.7]} 21. b4 {[%clk 0:01:40.9]} 21... e4 {[%clk 0:01:15.3]}
22. b5 {[%clk 0:01:40.9]} 22... Qe5 {[%clk 0:01:03.4]} 23. Qc7 {[%clk
0:01:24.6]} 23... cxb5 {[%clk 0:00:41.5]} 24. Qxf7 {[%clk 0:01:07.8]} 24... bxc4
{[%clk 0:00:36.5]} 25. Qxc4 {[%clk 0:01:05]} 25... b5 {[%clk 0:00:31.6]} 26. Qd4
{[%clk 0:01:00.5]} 26... Qxd4 {[%clk 0:00:28.9]} 27. R6xd4 {[%clk 0:00:56.1]}
27... a5 {[%clk 0:00:27.7]} 28. Rc1 {[%clk 0:00:52]} 28... Ra7 {[%clk
0:00:25.5]} 29. Rc5 {[%clk 0:00:48.4]} 29... b4 {[%clk 0:00:24.7]} 30. Rcc4
{[%clk 0:00:40.8]} 30... Rae7 {[%clk 0:00:19.7]} 31. e3 {[%clk 0:00:27]} 31...
Re5 {[%clk 0:00:10.4]} 32. h4 {[%clk 0:00:16.6]} 32... Kh7 {[%clk 0:00:08.4]}
33. Bh3 {[%clk 0:00:17.1]} 33... Kg6 {[%clk 0:00:08.3]} 34. Kg2 {[%clk
0:00:15.6]} 34... h5 {[%clk 0:00:08.6]} 35. Bd7 {[%clk 0:00:14.5]} 35... R8e7
{[%clk 0:00:08.9]} 36. Ba4 {[%clk 0:00:13.3]} 36... Rb7 {[%clk 0:00:08.2]} 37.
Bc2 {[%clk 0:00:13]} 37... Rbe7 {[%clk 0:00:07.6]} 38. f3 {[%clk 0:00:10.2]}
38... Kf7 {[%clk 0:00:05.4]} 39. fxe4 {[%clk 0:00:08.4]} 39... Rb7 {[%clk
0:00:05.1]} 40. Kf3 {[%clk 0:00:08.2]} 40... Reb5 {[%clk 0:00:03.1]} 41. Bb3
{[%clk 0:00:08.5]} 41... Kg6 {[%clk 0:00:02.8]} 42. Rc1 {[%clk 0:00:04.3]} 42...
Re5 {[%clk 0:00:02.8]} 43. Rc6 {[%clk 0:00:03.1]} 43... Ra7 {[%clk 0:00:02.9]}
44. Be6 {[%clk 0:00:01.5]} 44... a4 {[%clk 0:00:02.5]} 45. Bf5+ {[%clk 0:00:02]}
45... Kf7 {[%clk 0:00:01.4]} 0-1

[Event "Early-Titled-Tuesday-Blitz-November-28-2023"]
[Site "Chess.com"]
[Date "2023.11.28"]
[Round "10"]
[White "vasblesk"]
[Black "GaiozNigalidze"]
[Result "1/2-1/2"]
[WhiteElo "2825"]
[BlackElo "2707"]
[TimeControl "180+1"]
[EndTime "10:02:59 PST"]
[Termination "Game drawn by stalemate"]

1. d4 {[%clk 0:03:00.9]} 1... d5 {[%clk 0:02:58.7]} 2. Nf3 {[%clk 0:03:00.7]}
2... Nf6 {[%clk 0:02:58.3]} 3. g3 {[%clk 0:03:00.8]} 3... e6 {[%clk 0:02:56.6]}
4. Bg2 {[%clk 0:03:01]} 4... Be7 {[%clk 0:02:55.4]} 5. O-O {[%clk 0:03:01.9]}
5... b6 {[%clk 0:02:55.7]} 6. c4 {[%clk 0:03:01.5]} 6... Bb7 {[%clk 0:02:56.1]}
7. cxd5 {[%clk 0:02:59.2]} 7... exd5 {[%clk 0:02:55.6]} 8. Nc3 {[%clk
0:02:59.4]} 8... O-O {[%clk 0:02:55.1]} 9. Bf4 {[%clk 0:02:59.8]} 9... a6 {[%clk
0:02:54.7]} 10. Rc1 {[%clk 0:02:58.5]} 10... c5 {[%clk 0:02:52.9]} 11. dxc5
{[%clk 0:02:56.5]} 11... bxc5 {[%clk 0:02:53.1]} 12. Ne5 {[%clk 0:02:57.1]}
12... Ra7 {[%clk 0:02:35]} 13. Na4 {[%clk 0:02:40.5]} 13... Re8 {[%clk
0:02:10.1]} 14. Nxc5 {[%clk 0:02:31.9]} 14... Bxc5 {[%clk 0:02:09.6]} 15. Rxc5
{[%clk 0:02:32.8]} 15... g5 {[%clk 0:02:09.9]} 16. Nxf7 {[%clk 0:02:18.2]} 16...
Kxf7 {[%clk 0:02:08.9]} 17. Bxg5 {[%clk 0:02:05.6]} 17... Nbd7 {[%clk
0:02:08.6]} 18. Bxd5+ {[%clk 0:01:58.6]} 18... Bxd5 {[%clk 0:02:07.4]} 19. Rxd5
{[%clk 0:01:58.5]} 19... Qb6 {[%clk 0:02:02]} 20. Rd2 {[%clk 0:01:39.5]} 20...
Qe6 {[%clk 0:01:56.7]} 21. Bf4 {[%clk 0:01:31.5]} 21... Qxa2 {[%clk 0:01:53.8]}
22. f3 {[%clk 0:01:29.5]} 22... Rb7 {[%clk 0:01:52.3]} 23. Qc2 {[%clk
0:01:19.9]} 23... Qb3 {[%clk 0:01:49]} 24. e4 {[%clk 0:01:00.7]} 24... Qxc2
{[%clk 0:01:47.6]} 25. Rxc2 {[%clk 0:01:01.6]} 25... Ne5 {[%clk 0:01:42.5]} 26.
Bxe5 {[%clk 0:01:01.5]} 26... Rxe5 {[%clk 0:01:42.1]} 27. Ra1 {[%clk 0:01:01.9]}
27... Reb5 {[%clk 0:01:40]} 28. Rxa6 {[%clk 0:00:59.6]} 28... Rxb2 {[%clk
0:01:40.2]} 29. Ra2 {[%clk 0:00:59.4]} 29... Rxa2 {[%clk 0:01:39.8]} 30. Rxa2
{[%clk 0:01:00.3]} 30... Rb3 {[%clk 0:01:38.1]} 31. Kg2 {[%clk 0:01:00.4]} 31...
h5 {[%clk 0:01:33.4]} 32. h4 {[%clk 0:00:57.6]} 32... Kg6 {[%clk 0:01:29.2]} 33.
Ra5 {[%clk 0:00:52.7]} 33... Rd3 {[%clk 0:01:27.1]} 34. Rg5+ {[%clk 0:00:51.6]}
34... Kh6 {[%clk 0:01:25.9]} 35. Kf2 {[%clk 0:00:51]} 35... Rc3 {[%clk
0:01:23.9]} 36. Ke2 {[%clk 0:00:50.5]} 36... Nh7 {[%clk 0:01:23.8]} 37. Rf5
{[%clk 0:00:44.7]} 37... Kg6 {[%clk 0:01:22.4]} 38. Rd5 {[%clk 0:00:40]} 38...
Nf6 {[%clk 0:01:21.9]} 39. Rg5+ {[%clk 0:00:40.1]} 39... Kh6 {[%clk 0:01:19.1]}
40. e5 {[%clk 0:00:38.3]} 40... Nd5 {[%clk 0:01:07.7]} 41. f4 {[%clk 0:00:27.6]}
41... Ra3 {[%clk 0:00:44.1]} 42. Kd2 {[%clk 0:00:25.1]} 42... Rf3 {[%clk
0:00:42.1]} 43. e6 {[%clk 0:00:20.6]} 43... Ne7 {[%clk 0:00:38.7]} 44. Ke2
{[%clk 0:00:18.2]} 44... Ra3 {[%clk 0:00:34.2]} 45. f5 {[%clk 0:00:18.5]} 45...
Nd5 {[%clk 0:00:30.9]} 46. Rg6+ {[%clk 0:00:17.7]} 46... Kh7 {[%clk 0:00:31]}
47. Rg5 {[%clk 0:00:18.1]} 47... Kh6 {[%clk 0:00:20.3]} 48. Kd2 {[%clk
0:00:15.9]} 48... Kh7 {[%clk 0:00:20.2]} 49. Rxh5+ {[%clk 0:00:15.3]} 49... Kg7
{[%clk 0:00:20.7]} 50. Rg5+ {[%clk 0:00:16.2]} 50... Kf6 {[%clk 0:00:21.2]} 51.
g4 {[%clk 0:00:15.8]} 51... Ne3 {[%clk 0:00:21.3]} 52. Rg6+ {[%clk 0:00:15.6]}
52... Ke7 {[%clk 0:00:21.8]} 53. Rg7+ {[%clk 0:00:16]} 53... Kd6 {[%clk
0:00:21.7]} 54. h5 {[%clk 0:00:15.3]} 54... Nc4+ {[%clk 0:00:20.6]} 55. Ke2
{[%clk 0:00:15.1]} 55... Ra2+ {[%clk 0:00:20.1]} 56. Kf3 {[%clk 0:00:13.8]}
56... Ne5+ {[%clk 0:00:20.3]} 57. Kf4 {[%clk 0:00:12.8]} 57... Ra5 {[%clk
0:00:20.7]} 58. e7 {[%clk 0:00:12.3]} 58... Ra4+ {[%clk 0:00:21.1]} 59. Kg3
{[%clk 0:00:12.5]} 59... Ra3+ {[%clk 0:00:21.2]} 60. Kh4 {[%clk 0:00:12.7]}
60... Nf3+ {[%clk 0:00:21.6]} 61. Kg3 {[%clk 0:00:13.3]} 61... Ne5+ {[%clk
0:00:22]} 62. Kf4 {[%clk 0:00:11.5]} 62... Ra4+ {[%clk 0:00:22]} 63. Kg5 {[%clk
0:00:11.2]} 63... Rxg4+ {[%clk 0:00:22]} 64. Kh6 {[%clk 0:00:10.8]} 64... Rxg7
{[%clk 0:00:22.3]} 65. Kxg7 {[%clk 0:00:11.7]} 65... Kxe7 {[%clk 0:00:21.4]} 66.
f6+ {[%clk 0:00:11.7]} 66... Ke6 {[%clk 0:00:21.4]} 67. h6 {[%clk 0:00:12.3]}
67... Nf7 {[%clk 0:00:21.5]} 68. h7 {[%clk 0:00:12.9]} 68... Nh8 {[%clk
0:00:21.7]} 69. Kxh8 {[%clk 0:00:09.4]} 69... Kf7 {[%clk 0:00:21.6]} 1/2-1/2